Cogmind - Beta 17.1 @@@ ROGUE MODE // 2026.09.20 @ 18:26:05 Player: Tibo Result: Destroyed by X-67 Chaingunner with Heavy Machine Gun Performance ------------- Evolutions (3) 1500 Regions Visited (5) 1000 Robots Destroyed (53) 265 Value Destroyed (1030) 1030 Prototype IDs (2) 40 Alien Tech Used (0) 0 Bonus (500) 500 TOTAL SCORE: 4335 Bonus ------- Entered DSFs 500 Cogmind --------- Core Integrity 0/700 Matter 51/300 Energy 95/100 System Corruption 2% Temperature Cool (0) Movement Core (50) Location -7/DSF Parts ------- > --- POWER (1) -------- (None) > --- PROPULSION (4) --- (None) > --- UTILITY (4) ------ Launcher Guidance Computer > --- WEAPON (4) ------- (None) > --- INVENTORY (5) ---- VSS Leg Improved Sensor Array Launcher Guidance Computer Plasma Cannon Rocket Launcher Peak State ------------ > --- POWER ------------ Nuclear Core > --- PROPULSION ------- VSS Leg VSS Leg VSS Leg VSS Leg > --- UTILITY ---------- Cooling System Medium Storage Unit Launcher Guidance Computer Medium Armor Plating > --- WEAPON ----------- Particle Gun Heavy Particle Gun Plasma Cannon Rocket Launcher > --- INVENTORY -------- Advanced Treads VSS Leg Medium Storage Unit Improved Sensor Array Targeting Computer Launcher Guidance Computer Assault Cannon Assault Cannon Rocket Launcher [Rating: 38] Favorites ----------- Power Light Ion Engine Engine Light Ion Engine Power Core Nuclear Core Propulsion Aluminum Leg Treads Medium Treads Leg Aluminum Leg Wheel Wheel Utility Medium Storage Unit Device Cooling System Storage Medium Storage Unit Processor Signal Interpreter Protection Medium Armor Plating Weapon Rocket Launcher Energy Gun Particle Gun Energy Cannon Plasma Cannon Ballistic Gun Light Assault Rifle Ballistic Cannon Flak Cannon Launcher Rocket Launcher Build | -11 -10 -9 -8 -7 -7 ------- Run | Yrd Mat Mat Mat Fac DSF Slots Evolved 6 | . . 2 2 2 . Power . | . . . . . . Propulsion 2 | . . . 1 1 . Utility 2 | . . 1 1 . . Weapon 2 | . . 1 . 1 . Parts Attached 46 | 6 9 9 10 5 7 Power 3 | 1 . 1 1 . . Engine 2 | 1 . 1 . . . Core 1 | . . . 1 . . Reactor . | . . . . . . Propulsion 15 | 2 . 2 6 1 4 Treads 4 | . . . . . 4 Leg 10 | 2 . 2 5 1 . Wheel 1 | . . . 1 . . Hover . | . . . . . . Flight . | . . . . . . Utility 10 | 1 4 1 2 1 1 Device 4 | 1 1 1 1 . . Storage 1 | . 1 . . . . Processor 2 | . 1 . . . 1 Hackware . | . . . . . . Protection 3 | . 1 . 1 1 . Artifact . | . . . . . . Weapon 18 | 2 5 5 1 3 2 Energy Gun 6 | . 2 2 . 1 1 Energy Cannon 2 | . . 1 . 1 . Ballistic Gun 2 | 2 . . . . . Ballistic Cannon 2 | . . 1 . . 1 Launcher 6 | . 3 1 1 1 . Special Weapon . | . . . . . . Impact Weapon . | . . . . . . Slashing Weapon . | . . . . . . Piercing Weapon . | . . . . . . Special Melee Weapon . | . . . . . . Unidentified Prototypes 2 | . . 2 . . . Parts Lost 27 | . . 1 8 . 18 Power 2 | . . . 1 . 1 Propulsion 11 | . . . 3 . 8 Utility 5 | . . . 2 . 3 Weapon 9 | . . 1 2 . 6 Highest Loss Streak 14 | . . 1 5 . 14 To Critical Strikes . | . . . . . . Average Backups 7 | 4 6 9 9 6 7 Power . | . 1 1 . . . Propulsion 1 | 1 2 2 1 2 1 Utility 2 | . 1 3 4 3 3 Weapon 2 | . 1 3 2 1 2 Tool/Special . | . . . . . . Unused Backups 11 | . 1 . 2 . 8 Power 1 | . . . 1 . . Propulsion 2 | . . . 1 . 1 Utility 5 | . . . . . 5 Weapon 3 | . 1 . . . 2 Tool/Special . | . . . . . . Average Slot Usage (%) 88 | . 99 88 89 92 58 Engine 9 | . 14 11 6 . . Core 1 | . . . 2 7 1 Leg 22 | . 28 22 18 30 16 Device 8 | . 12 4 10 7 1 Storage 8 | . 7 11 9 7 4 Processor 8 | . 5 11 9 7 7 Protection 2 | . 2 . 4 5 1 Energy Gun 9 | . 9 12 9 8 6 Energy Cannon 1 | . . 2 . 4 3 Ballistic Gun 1 | . 5 . . . . Ballistic Cannon 3 | . . 2 8 . . Launcher 9 | . 13 11 8 10 2 Peak Build Rating 38 | 6 11 17 25 34 38 Average Rating 14 | 5 9 13 20 31 22 On Entrance 14 | . 6 10 17 22 34 Avg Prop Armor Cover (%) 8 | . . . 2 . 14 Naked Turns . | . . . . . . Heaviest Build 44 | 6 21 28 41 44 43 Greatest Support 112 | 20 20 20 41 48 112 Greatest Overweight (x) 5 | . 1 1 2 1 5 Average Overweight (x) . | . . . . . . Largest Inventory Capacity 10 | 5 10 10 10 10 10 Average Capacity 8 | 5 7 10 10 10 8 Most Carried 10 | 5 10 10 10 9 10 Average Carried 7 | 4 6 9 9 6 7 Final Capacity 10 | 5 10 10 10 10 5 Final Carried 10 | 5 10 9 10 6 5 Class Distribution -------------------- 58% | Mutant 28% | Bomber 13% | Gunner Dominant Class ---------------- Mutant | -10/Materials Gunner | -9/Materials Bomber | -8/Materials Bomber | -7/Factory Mutant | -7/DSF Resources | -11 -10 -9 -8 -7 -7 ----------- Run | Yrd Mat Mat Mat Fac DSF Matter Collected 885 | 326 54 122 363 . 20 Remotely . | . . . . . . Salvage Created 1113 | 243 117 456 297 . . Parts 94 | 21 5 43 25 . . Haulers Intercepted 1 | . . 1 . . . Recyclers Shooed 1 | . . . 1 . . Parts Field Recycled . | . . . . . . Retrieved Matter . | . . . . . . Parts Self-Destructed . | . . . . . . Prevented . | . . . . . . Parts Restored . | . . . . . . Kills | -11 -10 -9 -8 -7 -7 ------- Run | Yrd Mat Mat Mat Fac DSF Combat Hostiles Destroyed 27 | . 5 10 12 . . Guns 5 | . . 4 1 . . Cannons 1 | . . . 1 . . AOE 21 | . 5 6 10 . . Classes Destroyed 9 | 3 3 3 . . . Worker 6 | 2 . 2 2 . . Builder 5 | . 1 3 1 . . Tunneler 8 | 7 . 1 . . . Hauler 1 | . . 1 . . . Recycler 3 | 1 1 1 . . . Watcher 3 | . . 2 1 . . Swarmer 11 | . 3 3 5 . . Grunt 12 | . 2 5 5 . . Sentry 4 | . . 2 2 . . Best Kill Streak 9 | 2 6 9 6 . . Combat Bots Only 5 | . 5 4 5 . . Max Kills in Single Turn 3 | 1 2 2 3 . . Gunslinging . | . . . . . . Exploded 3 | . 2 2 3 . . Melee . | . . . . . . Uniques/NPCs Destroyed . | . . . . . . Combat | -11 -10 -9 -8 -7 -7 -------- Run | Yrd Mat Mat Mat Fac DSF Hostile Shots Fired 329 | . 12 25 112 . 180 Missed 105 | . 2 6 38 . 59 Hits 224 | . 10 19 74 . 121 Projectile 224 | . 10 19 74 . 121 Critical Strikes 8 | . 1 . 2 . 5 Damage Taken 4350 | . 167 280 1226 . 2677 Core 962 | . 15 54 193 . 700 Absorbed by Shields . | . . . . . . Core Remaining (%) 86 | 100 94 86 64 . . Volleys Fired 89 | 33 12 25 18 . 1 Largest 3 | 2 2 3 3 . 3 Hottest 200 | 40 98 163 128 . 200 Shots Fired 178 | 66 23 48 38 . 3 Gun 129 | 66 13 30 18 . 2 Cannon 8 | . . 2 5 . 1 Launcher 41 | . 10 16 15 . . Special . | . . . . . . Kinetic 75 | 66 2 2 5 . . Thermal 61 | . 11 30 18 . 2 Explosive 41 | . 10 16 15 . . Electromagnetic 1 | . . . . . 1 Robot Hit Streak 7 | 7 4 6 5 . 2 Robot Miss Streak 9 | 4 4 9 3 . 1 Penetration Max . | . . . . . . Secondary Targets . | . . . . . . Shots Hit Robots 86 | 36 11 19 18 . 2 Core Hits 84 | 17 9 25 33 . . Critical Kills . | . . . . . . Critical Parts Destroyed . | . . . . . . Critical Strikes 3 | . 1 2 . . . Burn 3 | . 1 2 . . . Melee Attacks . | . . . . . . Impact . | . . . . . . Slashing . | . . . . . . Piercing . | . . . . . . Sneak Attacks . | . . . . . . Combat Hostiles . | . . . . . . Follow-up Attacks . | . . . . . . Damage Inflicted 3539 | 292 574 1151 1486 . 36 Guns 858 | 292 102 245 210 . 9 Cannons 117 | . . 7 86 . 24 Explosions 2558 | . 472 898 1188 . . Melee . | . . . . . . Ramming 6 | . . 1 2 . 3 Kinetic 391 | 292 6 7 86 . . Thermal 575 | . 96 245 210 . 24 Explosive 2558 | . 472 898 1188 . . Electromagnetic 9 | . . . . . 9 Impact . | . . . . . . Slashing . | . . . . . . Piercing . | . . . . . . Highest Corruption 2 | . . . . . 2 Average Corruption 1 | . . . . . 1 Corruption Purged . | . . . . . . Corruption Blocked . | . . . . . . Overload Shots . | . . . . . . Overflow Damage 26 | . 6 . 20 . . Projectiles . | . . . . . . Explosions 26 | . 6 . 20 . . Melee . | . . . . . . Knockbacks . | . . . . . . Impact . | . . . . . . Kinetic . | . . . . . . Secondary . | . . . . . . Self-Inflicted Damage 129 | . 29 68 32 . . Shots 6 | . 2 3 1 . . Rammed 2 | . . . . . 2 Targets Rammed 4 | . . 1 1 . 2 Kicked 2 | . . 1 1 . . Crushed . | . . . . . . Highest Temperature 468 | . 461 468 18 . 36 Average Temperature 146 | . 202 121 13 . 24 Received Heat Transfer 762 | . 81 78 603 . . Effects 9 | . 3 6 . . . Shutdowns 3 | . 2 1 . . . Energy Bleed 2 | . 1 1 . . . Damage (major) 4 | . . 4 . . . Siege Activations . | . . . . . . Martial Activations . | . . . . . . Shielding Activations . | . . . . . . Robots Disrupted . | . . . . . . Combat Hostiles . | . . . . . . Robots Corrupted . | . . . . . . Combat Hostiles . | . . . . . . Parts Fried . | . . . . . . Impact Corruptions . | . . . . . . Robots Melted . | . . . . . . Combat Hostiles . | . . . . . . Parts Melted 1 | . . 1 . . . Heat Transferred 1456 | . 296 703 407 . 50 Parts Sabotaged . | . . . . . . Parts Stolen . | . . . . . . Parts Stripped . | . . . . . . Power Chain Reactions . | . . . . . . Alert | -11 -10 -9 -8 -7 -7 ------- Run | Yrd Mat Mat Mat Fac DSF Maximum Alert Level 1 | . . 1 1 . . Low Security (%) 75 | 100 100 44 56 100 100 Level 1 24 | . . 55 43 . . Level 2 . | . . . . . . Level 3 . | . . . . . . Level 4 . | . . . . . . Level 5 . | . . . . . . High Security . | . . . . . . Max Security . | . . . . . . Peak Influence 351 | 10 142 332 351 121 74 Initial 126 | . . 18 126 121 74 Average 112 | 1 56 192 194 115 27 Influence Increases 1224 | 50 186 500 453 5 30 Destroy 0b10 Robot/C 540 | . 100 200 240 . . Destroy 0b10 Robot/NC 130 | 50 10 50 20 . . Destroy Leader 108 | . 20 46 42 . . Successful Hack 27 | . . . 22 5 . Disable Machine 135 | . . 90 45 . . Destroy Structure 239 | . 41 114 84 . . Lose Combat Pursuer 45 | . 15 . . . 30 Influence Decreases 1224 | 50 142 244 484 168 136 Entered New Map 380 | . . 26 174 148 32 Time Decay 650 | 50 142 208 230 20 . Lost Part 194 | . . 10 80 . 104 Squads Dispatched 6 | . 1 2 1 . 2 Investigation 1 | . . 1 . . . Extermination . | . . . . . . Reinforcement 5 | . 1 1 1 . 2 Assault . | . . . . . . Garrison . | . . . . . . Intercept . | . . . . . . Searches Triggered . | . . . . . . Construction Impeded . | . . . . . . Haulers Reinforced . | . . . . . . Active Scanning Responses . | . . . . . . Cargo Convoy Interrupts . | . . . . . . Stealth | -11 -10 -9 -8 -7 -7 --------- Run | Yrd Mat Mat Mat Fac DSF Distress Signals 3 | . . 2 1 . . Communications Jammed . | . . . . . . Distress Signals . | . . . . . . Times Spotted 53 | . 9 16 20 . 8 Peak Tracking Total 6 | . 5 6 4 . 6 Tactical Retreats 3 | . 1 . . . 2 Traps | -11 -10 -9 -8 -7 -7 ------- Run | Yrd Mat Mat Mat Fac DSF Traps Triggered 1 | . . . . . 1 Indirectly . | . . . . . . Trap Hack Attempts . | . . . . . . Triggered . | . . . . . . Disarmed . | . . . . . . Reprogrammed . | . . . . . . Reused . | . . . . . . Traps Extracted . | . . . . . . Installed . | . . . . . . Triggered . | . . . . . . Machines | -11 -10 -9 -8 -7 -7 ---------- Run | Yrd Mat Mat Mat Fac DSF Machines Disabled 9 | . . 6 3 . . Max in Single Turn 1 | . . 1 1 . . Machines Repaired . | . . . . . . Machines Dismantled . | . . . . . . Machines Sabotaged . | . . . . . . Overloaded Fab Kills . | . . . . . . Hacking | -11 -10 -9 -8 -7 -7 --------- Run | Yrd Mat Mat Mat Fac DSF Machines Accessed 10 | . 3 3 2 2 . Terminals 10 | . 3 3 2 2 . Fabricators . | . . . . . . Repair Stations . | . . . . . . Recycling Units . | . . . . . . Scanalyzers . | . . . . . . Garrison Access . | . . . . . . Total Hacks 21 | . 5 6 8 2 . Successful 5 | . . 1 3 1 . Failed 16 | . 5 5 5 1 . Catastrophic 8 | . 4 3 . 1 . Database Lockouts . | . . . . . . Manual 17 | . 5 6 5 1 . Terminals 21 | . 5 6 8 2 . Fabricators . | . . . . . . Repair Stations . | . . . . . . Recycling Units . | . . . . . . Scanalyzers . | . . . . . . Garrison Access . | . . . . . . Terminal Hacks 4 | . . 1 2 1 . Record 2 | . . 1 1 . . Open DSF 1 | . . . . 1 . Recycling Unit Index 1 | . . . 1 . . Fabricator Hacks . | . . . . . . Repair Station Hacks . | . . . . . . Recycling Unit Hacks . | . . . . . . Scanalyzer . | . . . . . . Garrison Access Hacks . | . . . . . . Unauthorized Hacks 1 | . . . 1 . . Terminals 1 | . . . 1 . . Assimilate 1 | . . . 1 . . Fabricators . | . . . . . . Repair Stations . | . . . . . . Recycling Units . | . . . . . . Scanalyzers . | . . . . . . Garrison Access . | . . . . . . Data Cores Recovered . | . . . . . . Used . | . . . . . . Hacking Detections 9 | . 2 3 2 2 . Full Trace Events 2 | . . 2 . . . Feedback Events . | . . . . . . Feedback Blocked . | . . . . . . Robot Schematics Acquired . | . . . . . . Robots Built . | . . . . . . Authchips . | . . . . . . Time . | . . . . . . Total Robot Build Rating . | . . . . . . Part Schematics Acquired . | . . . . . . Parts Built . | . . . . . . Authchips . | . . . . . . Time . | . . . . . . Total Part Build Rating . | . . . . . . Part Studies Acquired . | . . . . . . Parts Repaired . | . . . . . . Time . | . . . . . . Parts Recycled . | . . . . . . Recycled Matter . | . . . . . . Retrieved Matter . | . . . . . . Retrieved Components . | . . . . . . Parts Scanalyzed . | . . . . . . Part Schematics Acquired . | . . . . . . Parts Damaged . | . . . . . . Bothacking | -11 -10 -9 -8 -7 -7 ------------ Run | Yrd Mat Mat Mat Fac DSF Used RIF Installer . | . . . . . . Robots Hacked . | . . . . . . Non-combat . | . . . . . . Combat . | . . . . . . Robot Hacks Applied . | . . . . . . Relay Couplers Released . | . . . . . . Fabnet Peak Effective % . | . . . . . . Robots Rewired . | . . . . . . Allies Hacked . | . . . . . . Hacks Repelled . | . . . . . . Allies | -11 -10 -9 -8 -7 -7 -------- Run | Yrd Mat Mat Mat Fac DSF Total Allies . | . . . . . . Largest Group . | . . . . . . Highest-Rated Group . | . . . . . . Highest-Rated Ally . | . . . . . . Total Orders . | . . . . . . Ally Attacks . | . . . . . . Total Damage . | . . . . . . Kills . | . . . . . . Allies Corrupted . | . . . . . . Allies Melted . | . . . . . . Intel | -11 -10 -9 -8 -7 -7 ------- Run | Yrd Mat Mat Mat Fac DSF Active Infowar (turns) 522 | 245 277 . . . . Terrain 136 | . 136 . . . . Seismic 522 | 245 277 . . . . Robot Analysis Total . | . . . . . . Derelict Logs Recovered . | . . . . . . Drone Launches . | . . . . . . Drone Recoveries . | . . . . . . Exploration | -11 -10 -9 -8 -7 -7 ------------- Run | Yrd Mat Mat Mat Fac DSF Turns Passed 1996 | 320 468 483 490 42 193 Spaces Moved 1154 | 212 324 252 224 34 108 Core 68 | 48 . . . . 20 Treads 29 | . . . . . 29 Legs 1057 | 164 324 252 224 34 59 Wheels . | . . . . . . Hover . | . . . . . . Flight . | . . . . . . Fastest Speed 50 | 50 120 120 90 90 50 Average Speed 141 | 104 125 157 183 100 157 Slowest Speed 300 | 120 190 190 270 180 300 Overloaded Moves . | . . . . . . Propulsion Burnouts . | . . . . . . Robots Hopped . | . . . . . . Potential Cave-ins . | . . . . . . Cave-ins Triggered . | . . . . . . Exploration Rate (%) 35 | 7 45 41 28 1 92 Regions Visited 5 Branch Regions . Pre-discovered Areas . | . . . . . . Known Exits Taken 4 | . 1 1 1 1 . Unknown Exits Taken 1 | 1 . . . . . Scrap Searched . | . . . . . . Spaces Dug . | . . . . . . Terrain Destroyed 296 | . 83 130 83 . . Melee . | . . . . . . Projectile . | . . . . . . AOE 296 | . 83 130 83 . . Terrain Rammed . | . . . . . . Walls Destroyed . | . . . . . . Machines Disabled . | . . . . . . Actions | -11 -10 -9 -8 -7 -7 --------- Run | Yrd Mat Mat Mat Fac DSF Total 1350 | 255 367 294 268 42 124 Wait 17 | . 10 6 1 . . Move 1149 | 211 323 251 223 33 108 Hop . | . . . . . . Pick Up 26 | 5 8 . 7 1 5 Fast Attach 16 | 6 . 1 3 . 6 Attach 14 | . 1 2 4 6 1 Detach 1 | . . . . 1 . Swap 21 | . 8 6 5 1 1 Drop 13 | . 5 2 6 . . Fire 89 | 33 12 25 18 . 1 Melee . | . . . . . . Ram . | . . . . . . Kick 2 | . . 1 1 . . Crush 2 | . . . . . 2 Escape Stasis . | . . . . . . Rewire . | . . . . . . Trap . | . . . . . . Miscellaneous . | . . . . . . Route ------- -11/Scrapyard -10/Materials (discovered 2 exits: *Mat / *Min) -9/Materials (discovered 2 exits: *Mat / *Min) -8/Materials -7/Factory -7/DSF (discovered 1 exit: [*Fac]) History --------- Turn | Location | Event 5 | -11/Scrapyard | Discovered new exit (range 16) 321 | -11/Scrapyard | Entered Materials 322 | -10/Materials | Build established: Mutant 484 | -10/Materials | Discovered new exit (range 9) 538 | -10/Materials | Discovered new exit (range 16) 621 | -10/Materials | Identified exit to Mines 643 | -10/Materials | Identified exit to Materials 789 | -10/Materials | Entered another Materials area 789 | -9/Materials | Evolved 2 slots: Utility x1, Weapon x1 957 | -9/Materials | Discovered new exit (range 12) 994 | -9/Materials | Identified exit to Mines 1125 | -9/Materials | Discovered new exit (range 15) 1268 | -9/Materials | Identified exit to Materials 1272 | -9/Materials | Entered another Materials area 1272 | -8/Materials | Evolved 2 slots: Propulsion x1, Utility x1 1534 | -8/Materials | Build established: Bomber 1675 | -8/Materials | Discovered new exit (range 16) 1713 | -8/Materials | Identified exit to Factory 1757 | -8/Materials | Lost 5 parts (2n1u2w) 1762 | -8/Materials | Entered Factory 1762 | -7/Factory | Evolved 2 slots: Propulsion x1, Weapon x1 1801 | -7/Factory | Identified exit to DSF 1804 | -7/Factory | Entered DSF 1847 | -7/DSF | Additional patrols routed to DSF 1937 | -7/DSF | Core integrity fell below 50% 1938 | -7/DSF | Discovered new exit (range 15) 1965 | -7/DSF | Lost 14 parts (1p4n3u6w) 1996 | -7/DSF | Core integrity fell below 20% 1997 | -7/DSF | Destroyed by X-67 Chaingunner with Heavy Machine Gun Last Messages --------------- 01960_ C-30 ARC bursts open, deploying its payload. 01960_ P-60 Hacker unfolds itself. 01960_ X-57 Shotgunner springs to life. 01962_ Slug penetrates Wall. 01965_ Penetrated by Slug. 01965_ P-60 Hacker suffers critical hit (Destroy). 01968_ Penetrated by Slug. 01968_ Matter Repository disabled. 01978_ ALERT: Suspicious intruders detected, dispatching Specialist reinforcements to area. 01985_ Penetrated by Slug. 01990_ Med. Treads destroyed. [Achievement: Physics Hates This One Trick] 01991_ Med. Treads destroyed. 01992_ Slammed into X-67 Chaingunner. 01992_ Penetrated by Slug. 01992_ Med. Treads destroyed. 01993_ Slammed into X-67 Chaingunner. 01995_ Penetrated by Slug. 01995_ Med. Treads destroyed. Map ----- +----------------------------------------------------+ | | | | | | | | | | | | | | | | | | | | | | | ?????????????????????????????????? | | ?????????????????????????????????? | | ?????????????????????????????????? | | ?????????????????????????????????? | | ?????????""??????????????????????? | | ?????????#"#?????????????????????? | | ??????####"##???????#########????? | | ??????#"""""######### #????? | | ??????#"""""##==#===# #????? | | ???#"##""<% ^ #????? | | ???#""""%% #????? | | ?????##""% ##==# ### ###????? | | ??????###xh###==#== ### ###????? | | ???????## ##########!! #????? | | ???????# @x==#??????#!! #????? | | ???????# x ==#??????#!! ] #????? | | ???????##xp###??????### !!###????? | | ???????# ==#??????#]] =!!!#????? | | ???????# ==#??????#]] !!#????? | | ???????# ==#??????#]] %!!#????? | | ??????### ###??????### ######## | | ??????#!! #?????????## ###!!!# | | ??????#!! #????#!!!## %#! !#% | | ??????#!! | | ??????#!! H | | ??????#!! | | ??????#== ## #***## ##!!!"[ | | ??????#== ## #***?## ###!!!#[ | | ??????### #??#####??## ######## | | ???????# ]????????? ==?????? | | ???????? ]????????# =??????? | | ???????? ]????????# =??????? | | ???????## ##???????### ###????? | | ???????#] ]????????#!! !!#????? | | ???????#] ]????????#!! !!#????? | | ????????# #?########!! !!###### | | ??????### ### # ### #?#]]]# | | ????###"" ## # ### ### ]]# | | ????""""" | +----------------------------------------------------+ Best States ------------- Heat Dissipation 56 Energy Generation 14 Energy Capacity 240 Matter Stores 300 Matter Capacity 300 Sight Range 16 Terrain Scan Range 16 Terrain Scan Density 10 Armor Coverage 225 Evasion (%) 57 Launcher Accuracy 20 Recoil Reduction 4 Item Schematics ----------------- None Robot Schematics ------------------ None Fabricated ------------ Nothing Repaired ---------- Nothing Studied --------- None Alien Tech Used ----------------- None Achievements -------------- Physics Hates This One Trick Challenges ------------ None Game ------ Seed ReinforcedMolecularKatana Manual? 0 Play Time 00:26:04 Cumulative 34.7 hours Start 2026.09.07 @ 15:21:04 End 2026.09.20 @ 18:26:05 Sessions 1 Manual Loads 0 Difficulty Rogue Special Mode None Game No. 49 Rogue 49 Adventurer 0 Explorer 0 Win Type - Total 0 Types 0/0/0/0/0/0/0/0/0/0 Lore% 18 Gallery% 30 Achievement% 24 Wizard Run 0 Options --------- Layout 1 ASCII 0 Keyboard 1 Movement Numpad Keybinds 0 Fullscreen 0 Font 28/SmallcapsGlow Map View 90x40 Zoom Use 0% Tactical HUD 1 Map Filters NONE Filters NONE Steam 1 RUN: 78b6ed07-2dac-4f16-9e10-743fdb65f45b